lending/lending_fUSD_20250122
["ID","MTS","AMOUNT","RATE_DAILY","PERIOD"]
[349950486,1737532249190,-598.13,0.00019723,2]
[349950487,1737532249200,-500.0,0.00019723,2]
[349950488,1737532249209,-2339.31,0.00019723,2]
[349950489,1737532249218,-2292.07,0.00019723,2]
[349950490,1737532249228,-500.0,0.00019723,2]
[349950491,1737532249237,-857.22180109,0.00019723,2]
[349950492,1737532249618,-36.79819891,0.00019723,2]
[349950493,1737532249628,-4955.08,0.00019723,2]
[349950494,1737532249638,-929.11,0.00019723,2]
[349950495,1737532249647,-500.0,0.00019723,2]
[349950496,1737532249657,-500.0,0.00019723,2]
[349950497,1737532249668,-1653.17,0.00019723,2]
[349950498,1737532249677,-500.0,0.00019723,2]
[349950499,1737532249689,-636.31,0.00019723,2]
[349950500,1737532249698,-2111.2,0.00019723,2]
[349950501,1737532249708,-836.14,0.00019723,2]
[349950502,1737532249717,-500.0,0.00019723,2]
[349950503,1737532249726,-826.06,0.00019723,2]
[349950504,1737532249736,-1606.75,0.00019723,2]
[349950505,1737532249746,-560.35,0.00019723,2]
[349950506,1737532249758,-832.21,0.00019723,2]
[349950507,1737532249768,-3383.36,0.00019723,2]
[349950508,1737532249777,-500.0,0.00019723,2]
[349950509,1737532249787,-567.81,0.00019723,2]
[349950510,1737532249796,-500.0,0.00019723,2]
[349950511,1737532249805,-500.0,0.00019723,2]
[349950512,1737532249815,-316.97948842,0.00019723,2]
[349950513,1737532249827,-849.91,0.00019723,2]
[349950514,1737532249837,-1176.54,0.00019723,2]
[349950515,1737532249847,-500.0,0.00019723,2]
[349950516,1737532249856,-665.16,0.00019723,2]
[349950517,1737532249865,-2727.7,0.00019723,2]
[349950518,1737532249876,-500.0,0.00019723,2]
[349950519,1737532249886,-536.54,0.00019723,2]
[349950520,1737532249896,-4573.62,0.00019723,2]
[349950521,1737532249905,-2678.11,0.00019723,2]
[349950522,1737532249915,-1346.95,0.00019723,2]
[349950523,1737532249924,-1176.69,0.00019723,2]
[349950524,1737532249933,-500.0,0.00019723,2]
[349950525,1737532249943,-1162.65,0.00019723,2]
[349950526,1737532249952,-500.0,0.00019723,2]
[349950527,1737532249961,-500.0,0.00019723,2]
[349950528,1737532249971,-1309.01,0.00019723,2]
[349950529,1737532249980,-3532.11,0.00019723,2]
[349950530,1737532249990,-500.0,0.00019723,2]
[349950531,1737532249999,-1985.55,0.00019723,2]
[349950532,1737532250008,-500.0,0.00019723,2]
[349950533,1737532250018,-664.9,0.00019723,2]
[349950534,1737532250027,-500.0,0.00019723,2]
[349950535,1737532250037,-1485.16,0.00019723,2]
[349950536,1737532250046,-500.0,0.00019723,2]
[349950537,1737532250055,-500.0,0.00019723,2]
[349950538,1737532250064,-500.0,0.00019723,2]
[349950539,1737532250074,-1375.31,0.00019723,2]
[349950540,1737532250084,-564.35,0.00019723,2]
[349950541,1737532250093,-500.0,0.00019723,2]
[349950542,1737532250103,-1159.35,0.00019723,2]
[349950543,1737532250112,-2396.68,0.00019723,2]
[349950544,1737532250122,-269.36905345,0.00019723,2]
[349950545,1737532250134,-500.0,0.00019723,2]
[349950546,1737532250144,-1187.4,0.00019723,2]
[349950547,1737532250154,-969.46,0.00019723,2]
[349950548,1737532250163,-2244.11,0.00019723,2]
[349950549,1737532250174,-500.0,0.00019723,2]
[349950550,1737532250184,-500.0,0.00019723,2]
[349950551,1737532250195,-727.84,0.00019723,2]
[349950552,1737532250204,-1472.1,0.00019723,2]
[349950553,1737532250215,-2752.03,0.00019723,2]
[349950554,1737532250224,-2359.33,0.00019723,2]
[349950555,1737532250234,-1578.1,0.00019723,2]
[349950556,1737532250243,-4341.3,0.00019723,2]
[349950557,1737532250253,-417.24242537,0.00019723,2]
[349950558,1737532250263,-500.0,0.00019723,2]
[349950559,1737532250272,-3408.38,0.00019723,2]
[349950560,1737532250282,-922.36,0.00019723,2]
[349950561,1737532250293,-1308.01,0.00019723,2]
[349950562,1737532250302,-330.04490682,0.00019723,2]
[349950563,1737532250313,-500.0,0.00019723,2]
[349950564,1737532250323,-672.59,0.00019723,2]
[349950565,1737532250333,-500.0,0.00019723,2]
[349950566,1737532250343,-500.0,0.00019723,2]
[349950567,1737532250354,-506.01,0.00019723,2]
[349950568,1737532250363,-2892.83,0.00019723,2]
[349950569,1737532250373,-500.0,0.00019723,2]
[349950570,1737532250382,-500.0,0.00019723,2]
[349950571,1737532250392,-500.0,0.00019723,2]
[349950572,1737532250402,-500.0,0.00019723,2]
[349950573,1737532250412,-2602.61,0.00019723,2]
[349950574,1737532250424,-500.0,0.00019723,2]
[349950575,1737532250434,-524.67,0.00019723,2]
[349950576,1737532250445,-500.0,0.00019723,2]
[349950577,1737532250454,-500.0,0.00019723,2]
[349950578,1737532250465,-513.28,0.00019723,2]
[349950579,1737532250474,-774.47,0.00019723,2]
[349950580,1737532250485,-608.31,0.00019723,2]
[349950581,1737532250495,-500.0,0.00019723,2]
[349950582,1737532250504,-500.0,0.00019723,2]
[349950583,1737532250514,-855.19,0.00019723,2]
[349950584,1737532250524,-500.0,0.00019723,2]
[349950585,1737532250532,-500.0,0.00019723,2]
[349950586,1737532250542,-500.0,0.00019723,2]
[349950587,1737532250551,-500.0,0.00019723,2]
[349950588,1737532250559,-1471.37,0.00019723,2]
[349950589,1737532250568,-500.0,0.00019723,2]
[349950590,1737532250577,-500.0,0.00019723,2]
[349950591,1737532250586,-688.02,0.00019723,2]
[349950592,1737532250596,-1342.03723702,0.00019723,2]
[349950593,1737532250609,-2570.62276298,0.00019723,2]
[349950594,1737532250619,-945.33,0.00019723,2]
[349950595,1737532250629,-1510.84,0.00019723,2]
[349950596,1737532250639,-500.0,0.00019723,2]
[349950597,1737532250649,-366.4045618,0.00019723,2]
[349950598,1737532250659,-619.46,0.00019723,2]
[349950599,1737532250674,-181.6,0.00019723,2]
[349950600,1737532250683,-458498.22565041,0.00019724,2]
[349950601,1737532250695,-791.2364989,0.00019724,2]
[349950602,1737532250709,-3873.24999978,0.00019724,2]
[349950603,1737532304303,197.88,0.00012329,2]
[349950606,1737532545974,214.18,0.00017,3]
[349950608,1737532616401,300.0,0.00017,3]
[349950609,1737532617325,151.01,0.00010137,2]
[349950610,1737532697954,-587.2,0.00016722,2]
[349950611,1737532697981,-151.01,0.00017184,2]
[349950612,1737532698003,-189.79281867,0.00018,2]
[349950613,1737532698027,-500.0,0.00018164,2]
[349950614,1737532698051,-500.0,0.00018164,2]
[349950615,1737532698076,-1373.11,0.00018375,2]
[349950616,1737532698101,-175.59,0.0001843,2]
[349950617,1737532698124,-184.65,0.00018472,2]
[349950618,1737532698147,-578.27,0.00018523,2]
[349950619,1737532698170,-200.0,0.0001864,2]
[349950620,1737532698195,-250.0,0.0001864,2]
[349950621,1737532698218,-250.0,0.0001864,2]
[349950622,1737532698240,-428.11,0.0001864,2]
[349950623,1737532698263,-999.54,0.0001864,2]
[349950624,1737532698286,-173.72,0.0001864,2]
[349950625,1737532698308,-300.0,0.0001864,2]
[349950626,1737532698330,-277.87,0.0001864,2]
[349950627,1737532698353,-250.0,0.0001864,2]
[349950628,1737532698376,-7631.13718133,0.0001867,2]
[349950629,1737532729646,-158.21127351,0.0001864,2]
[349950630,1737532729671,-956.727,0.0001864,2]
[349950631,1737532729698,-3885.06172649,0.0001867,2]
[349950632,1737532769770,-500.0,0.00018164,2]
[349950633,1737532769793,-500.0,0.00018164,2]
[349950634,1737532769816,-300.0,0.00018669,2]
[349950635,1737532769840,-9700.0,0.0001867,2]
[349950638,1737532796735,422.0,0.00024,120]
[349950639,1737532829287,422.5,0.00018,10]
[349950640,1737532831215,150.0,0.00022272,120]
[349950642,1737532890728,150.0,0.0002227,120]
[349950643,1737533215594,-500.0,0.00018164,2]
[349950644,1737533215617,-873.8739169,0.00018407,2]
[349950645,1737533215643,-181.6,0.00018507,2]
[349950646,1737533215666,-5702.98,0.0001864,2]
[349950647,1737533215693,-1000.0,0.0001864,2]
[349950648,1737533215716,-29741.5460831,0.0001864,2]
[349950652,1737533431934,-500.0,0.00015,2]
[349950653,1737533431947,-50.0,0.00015,2]
[349950654,1737533431957,-557.84,0.00016792,2]
[349950655,1737533431967,-600.0,0.00017,2]
[349950656,1737533431978,-604.51819551,0.00018164,2]
[349950657,1737533431988,-250.0,0.00018476,2]
[349950658,1737533431997,-23900.0,0.0001849,2]
[349950659,1737533432006,-287.6418045,0.0001849,2]
[349950660,1737533432018,-1.4881955,0.0001849,2]
[349950661,1737533432028,-6198.4839169,0.0001864,2]
[349950662,1737533432039,-250.0,0.00018768,2]
[349950663,1737533432048,-2331.78,0.00018788,2]
[349950664,1737533432057,-1000.44,0.00018946,2]
[349950665,1737533432067,-557.84,0.00019056,2]
[349950666,1737533432077,-187.58,0.00019061,2]
[349950667,1737533432086,-175.62,0.00019199,2]
[349950668,1737533432096,-505.0,0.00019205,2]
[349950669,1737533432104,-601.58519843,0.00019347,2]
[349950670,1737533432114,-9851.2679,0.00019348,2]
[349950671,1737533432127,-3618.18168795,0.00019348,2]
[349950672,1737533432136,-2163.08986923,0.00019349,2]
[349950673,1737533432145,-500.0,0.00019349,2]
[349950674,1737533432154,-275.9704,0.00019349,2]
[349950675,1737533432163,-1496.23,0.00019447,2]
[349950676,1737533432173,-747.8,0.00019447,2]
[349950677,1737533432182,-635.3,0.00019447,2]
[349950678,1737533432191,-2484.71,0.00019447,2]
[349950679,1737533432202,-500.0,0.00019447,2]
[349950680,1737533432212,-1165.0,0.00019447,2]
[349950681,1737533432223,-3822.18,0.00019447,2]
[349950682,1737533432232,-2524.65,0.00019447,2]
[349950683,1737533432241,-1388.038371,0.00019447,2]
[349950684,1737533432251,-1637.45,0.00019447,2]
[349950685,1737533432261,-156.797105,0.00019447,2]
[349950686,1737533432270,-924.26,0.00019447,2]
[349950687,1737533432280,-160.561758,0.00019447,2]
[349950688,1737533432289,-500.0,0.00019447,2]
[349950689,1737533432299,-500.0,0.00019447,2]
[349950690,1737533432309,-907.0,0.00019447,2]
[349950691,1737533432318,-500.0,0.00019447,2]
[349950692,1737533432327,-1203.49,0.00019447,2]
[349950693,1737533432337,-981.081555,0.00019447,2]
[349950694,1737533432345,-1936.49,0.00019447,2]
[349950695,1737533432354,-102.9063463,0.00019447,2]
[349950697,1737533432371,-397.0936537,0.00019447,2]
[349950698,1737533432380,-1246.80105402,0.00019447,2]
[349950702,1737533432859,-258.46894598,0.00019447,2]
[349950703,1737533432868,-500.0,0.00019447,2]
[349950704,1737533432878,-840.48979965,0.00019447,2]
[349950713,1737533437905,-214.49020035,0.00019447,2]
[349950714,1737533438087,-221.1915182,0.00019447,2]
[349950715,1737533438100,-2224.6184818,0.00019447,2]
[349950716,1737533438110,-1091.51,0.00019447,2]
[349950717,1737533438120,-500.0,0.00019447,2]
[349950718,1737533438136,-1233.73,0.00019447,2]
[349950719,1737533438145,-938.06,0.00019447,2]
[349950720,1737533438155,-500.0,0.00019447,2]
[349950721,1737533438166,-752.50342943,0.00019447,2]
[349950722,1737533438218,-1030.5,0.00019447,2]
[349950890,1737533440068,-1540.79657057,0.00019447,2]
[349950892,1737533440080,-639.76,0.00019447,2]
[349950894,1737533440092,-907.35,0.00019447,2]
[349950896,1737533440103,-2815.79,0.00019447,2]
[349950898,1737533440114,-564.66,0.00019447,2]
[349950900,1737533440126,-1191.12,0.00019447,2]
[349950901,1737533440139,-101.16923973,0.00019447,2]
[349950903,1737533440229,-1221.93076027,0.00019447,2]
[349950904,1737533440239,-1300.40980863,0.00019447,2]
[349950911,1737533440336,-269.69019137,0.00019447,2]
[349950913,1737533440346,-547.09082054,0.00019447,2]
[349950915,1737533440357,-580.29917946,0.00019447,2]
[349950917,1737533440367,-1497.74,0.00019447,2]
[349950919,1737533440376,-500.0,0.00019447,2]
[349950921,1737533440386,-1100.08629794,0.00019447,2]
[349950960,1737533443007,-86.54370206,0.00019447,2]
[349950961,1737533443017,-1561.74629795,0.00019447,2]
[349950962,1737533443061,-1048.19370205,0.00019447,2]
[349950963,1737533443071,-647.29,0.00019447,2]
[349950964,1737533443080,-534.69,0.00019447,2]
[349950965,1737533443090,-500.0,0.00019447,2]
[349950966,1737533443102,-3444.85,0.00019447,2]
[349950967,1737533443117,-942.41,0.00019447,2]
[349950968,1737533443135,-1338.45,0.00019447,2]
[349950969,1737533443147,-500.0,0.00019447,2]
[349950970,1737533443158,-2297.01,0.00019447,2]
[349950971,1737533443173,-1466.53,0.00019447,2]
[349950972,1737533443187,-1179.17,0.00019447,2]
[349950973,1737533443200,-1158.4,0.00019447,2]
[349950974,1737533443213,-1538.74,0.00019447,2]
[349950975,1737533443227,-4243.2,0.00019447,2]
[349950976,1737533443239,-717.06629795,0.00019447,2]
[349950977,1737533443408,-217.91370205,0.00019447,2]
[349950978,1737533443420,-500.0,0.00019447,2]
[349950979,1737533443432,-1223.19,0.00019447,2]
[349950980,1737533443445,-500.0,0.00019447,2]
[349950981,1737533443458,-924.77,0.00019447,2]
[349950982,1737533443471,-500.0,0.00019447,2]
[349950983,1737533443483,-2901.46,0.00019447,2]
[349950984,1737533443496,-873.86,0.00019447,2]
[349950985,1737533443507,-556.24,0.00019447,2]
[349950986,1737533443520,-1102.66,0.00019447,2]
[349950987,1737533443533,-500.0,0.00019447,2]
[349950988,1737533443549,-608.83,0.00019447,2]
[349950989,1737533443561,-500.0,0.00019447,2]
[349950990,1737533443571,-500.0,0.00019447,2]
[349950991,1737533443583,-716.64,0.00019447,2]
[349950992,1737533443596,-500.0,0.00019447,2]
[349950993,1737533443609,-500.0,0.00019448,2]
[349950994,1737533443622,-500.0,0.00019448,2]
[349950995,1737533443635,-500.0,0.00019448,2]
[349950996,1737533443645,-500.0,0.00019448,2]
[349950997,1737533443657,-500.0,0.00019448,2]
[349950998,1737533443671,-370.93246551,0.00019448,2]
[349950999,1737533443682,-500.0,0.00019448,2]
[349951000,1737533443695,-500.0,0.00019448,2]
[349951001,1737533443707,-500.0,0.00019448,2]
[349951002,1737533443719,-500.0,0.00019448,2]
[349951003,1737533443730,-676.12,0.00019448,2]
[349951004,1737533443742,-500.0,0.00019448,2]
[349951005,1737533443753,-500.0,0.00019448,2]
[349951006,1737533443765,-500.0,0.00019448,2]
[349951007,1737533443777,-749.05,0.00019448,2]
[349951008,1737533443788,-500.0,0.00019448,2]
[349951009,1737533443799,-535.74705755,0.00019448,2]
[349951010,1737533443811,-922.92,0.00019448,2]
[349951011,1737533443823,-500.0,0.00019448,2]
[349951012,1737533443835,-500.0,0.00019448,2]
[349951013,1737533443848,-500.0,0.00019448,2]
[349951014,1737533443860,-500.0,0.00019448,2]
[349951015,1737533443872,-500.0,0.00019448,2]
[349951016,1737533443885,-701.63,0.00019448,2]
[349951017,1737533443897,-1004.38,0.00019448,2]
[349951018,1737533443909,-500.0,0.00019448,2]
[349951019,1737533443921,-433.49178807,0.00019448,2]
[349951020,1737533443933,-599.57569607,0.00019448,2]
[349951021,1737533443945,-361.94034028,0.00019448,2]
[349951022,1737533443957,-500.0,0.00019448,2]
[349951023,1737533443970,-500.0,0.00019448,2]
[349951024,1737533443982,-500.0,0.00019448,2]
[349951025,1737533443993,-500.0,0.00019448,2]
[349951026,1737533444005,-500.0,0.00019448,2]
[349951027,1737533444017,-500.0,0.00019448,2]
[349951028,1737533444030,-704.87,0.00019448,2]
[349951029,1737533444042,-500.0,0.00019448,2]
[349951030,1737533444055,-500.0,0.00019448,2]
[349951031,1737533444067,-500.0,0.00019448,2]
[349951032,1737533444079,-500.0,0.00019448,2]
[349951033,1737533444091,-500.0,0.00019448,2]
[349951034,1737533444103,-500.0,0.00019448,2]
[349951035,1737533444114,-500.0,0.00019448,2]
[349951036,1737533444129,-500.0,0.00019448,2]
[349951037,1737533444141,-500.0,0.00019448,2]
[349951038,1737533444152,-500.0,0.00019448,2]
[349951039,1737533444164,-500.0,0.00019448,2]
[349951040,1737533444176,-592.68,0.00019448,2]
[349951041,1737533444188,-500.0,0.00019448,2]
[349951042,1737533444200,-519.69,0.00019448,2]
[349951043,1737533444212,-606.65,0.00019448,2]
[349951044,1737533444223,-500.0,0.00019448,2]
[349951045,1737533444235,-500.0,0.00019448,2]
[349951046,1737533444247,-500.0,0.00019448,2]
[349951047,1737533444259,-500.0,0.00019448,2]
[349951048,1737533444270,-503.62914928,0.00019448,2]
[349951049,1737533444282,-500.0,0.00019448,2]
[349951050,1737533444295,-501.07829918,0.00019448,2]
[349951051,1737533444307,-500.0,0.00019448,2]
[349951052,1737533444319,-500.0,0.00019448,2]
[349951053,1737533444331,-975.86,0.00019448,2]
[349951054,1737533444343,-938.53,0.00019448,2]
[349951055,1737533444356,-500.0,0.00019448,2]
[349951056,1737533444367,-500.0,0.00019448,2]
[349951057,1737533444379,-500.0,0.00019448,2]
[349951058,1737533444390,-500.0,0.00019448,2]
[349951059,1737533444402,-500.0,0.00019448,2]
[349951060,1737533444414,-500.0,0.00019448,2]
[349951061,1737533444426,-500.0,0.00019448,2]
[349951062,1737533444438,-500.0,0.00019448,2]
[349951063,1737533444450,-500.0,0.00019448,2]
[349951064,1737533444462,-500.0,0.00019448,2]
[349951065,1737533444473,-500.0,0.00019448,2]
[349951066,1737533444485,-880.58,0.00019448,2]
[349951067,1737533444497,-500.0,0.00019448,2]
[349951068,1737533444508,-500.0,0.00019448,2]
[349951069,1737533444520,-526.2,0.00019448,2]
[349951070,1737533444532,-500.0,0.00019448,2]
[349951071,1737533444543,-500.0,0.00019448,2]
[349951072,1737533444556,-500.0,0.00019448,2]
[349951073,1737533444567,-500.0,0.00019448,2]
[349951074,1737533444579,-500.0,0.00019448,2]
[349951075,1737533444590,-500.0,0.00019448,2]
[349951076,1737533444602,-500.0,0.00019448,2]
[349951077,1737533444614,-500.0,0.00019448,2]
[349951078,1737533444626,-500.0,0.00019448,2]
[349951079,1737533444638,-500.0,0.00019448,2]
[349951080,1737533444650,-500.0,0.00019448,2]
[349951081,1737533444661,-1120.77,0.00019448,2]
[349951082,1737533444673,-500.0,0.00019448,2]
[349951083,1737533444684,-500.0,0.00019448,2]
[349951084,1737533444697,-500.0,0.00019448,2]
[349951085,1737533444708,-638.06,0.00019448,2]
[349951086,1737533444720,-500.0,0.00019448,2]
[349951087,1737533444732,-500.0,0.00019448,2]
[349951088,1737533444744,-500.0,0.00019448,2]
[349951089,1737533444753,-500.0,0.00019448,2]
[349951090,1737533444762,-500.0,0.00019448,2]
[349951091,1737533444771,-500.0,0.00019448,2]
[349951092,1737533444780,-500.0,0.00019448,2]
[349951093,1737533444790,-990.01,0.00019448,2]
[349951094,1737533444799,-653.85,0.00019448,2]
[349951095,1737533444809,-387.79842223,0.00019448,2]
[349951096,1737533444819,-500.0,0.00019448,2]
[349951097,1737533444828,-500.0,0.00019448,2]
[349951098,1737533444838,-500.0,0.00019448,2]
[349951099,1737533444847,-602.02,0.00019448,2]
[349951100,1737533444857,-500.0,0.00019448,2]
[349951101,1737533445124,-500.0,0.00019448,2]
[349951102,1737533445153,-1095.6,0.00019448,2]
[349951103,1737533445170,-594.76,0.00019448,2]
[349951104,1737533445182,-825.45,0.00019448,2]
[349951105,1737533445192,-501.0929215,0.00019448,2]
[349951106,1737533445201,-500.0,0.00019448,2]
[349951107,1737533445211,-312.52472531,0.00019448,2]
[349951108,1737533445221,-1233.79,0.00019448,2]
[349951109,1737533445230,-500.0,0.00019448,2]
[349951110,1737533445242,-510.32359324,0.00019448,2]
[349951111,1737533445251,-500.0,0.00019448,2]
[349951112,1737533445260,-1272.29,0.00019448,2]
[349951113,1737533445270,-500.0,0.00019448,2]
[349951114,1737533445281,-557.35,0.00019448,2]
[349951115,1737533445291,-716.67,0.00019448,2]
[349951116,1737533445300,-500.0,0.00019448,2]
[349951117,1737533445309,-500.0,0.00019448,2]
[349951118,1737533445318,-500.0,0.00019448,2]
[349951119,1737533445328,-500.0,0.00019448,2]
[349951120,1737533445337,-500.0,0.00019448,2]
[349951121,1737533445347,-500.0,0.00019448,2]
[349951122,1737533445357,-500.0,0.00019448,2]
[349951123,1737533445366,-500.0,0.00019448,2]
[349951124,1737533445375,-793.57,0.00019448,2]
[349951125,1737533445387,-500.0,0.00019448,2]
[349951126,1737533445397,-500.0,0.00019448,2]
[349951127,1737533445407,-497.00459664,0.00019448,2]
[349951128,1737533445416,-950.61,0.00019448,2]
[349951129,1737533445425,-500.0,0.00019448,2]
[349951130,1737533445435,-500.0,0.00019448,2]
[349951131,1737533445444,-923.24,0.00019448,2]
[349951132,1737533445454,-897.61,0.00019448,2]
[349951133,1737533445463,-282.9795579,0.00019448,2]
[349951134,1737533445472,-500.0,0.00019448,2]
[349951135,1737533445482,-500.0,0.00019448,2]
[349951136,1737533445491,-500.0,0.00019448,2]
[349951137,1737533445501,-500.0,0.00019448,2]
[349951138,1737533445510,-500.0,0.00019448,2]
[349951139,1737533445519,-597.75,0.00019448,2]
[349951140,1737533445528,-500.0,0.00019448,2]
[349951141,1737533445538,-500.0,0.00019448,2]
[349951142,1737533445548,-500.0,0.00019448,2]
[349951143,1737533445557,-500.0,0.00019448,2]
[349951144,1737533445567,-500.0,0.00019448,2]
[349951145,1737533445576,-500.0,0.00019448,2]
[349951146,1737533445586,-641.97,0.00019448,2]
[349951147,1737533445596,-1223.75,0.00019448,2]
[349951148,1737533445605,-501.66228129,0.00019448,2]
[349951149,1737533445615,-568.51191335,0.00019448,2]
[349951151,1737533445624,-621.72,0.00019448,2]
[349951152,1737533445636,-500.0,0.00019448,2]
[349951153,1737533445646,-590.57,0.00019448,2]
[349951154,1737533445655,-500.0,0.00019448,2]
[349951155,1737533445665,-524.4,0.00019448,2]
[349951156,1737533445675,-500.0,0.00019448,2]
[349951158,1737533445684,-985.24,0.00019448,2]
[349951159,1737533445694,-500.0,0.00019448,2]
[349951160,1737533445704,-500.0,0.00019448,2]
[349951161,1737533445714,-500.0,0.00019448,2]
[349951162,1737533445724,-500.0,0.00019448,2]
[349951163,1737533445733,-500.0,0.00019448,2]
[349951164,1737533445743,-500.0,0.00019448,2]
[349951165,1737533445752,-500.0,0.00019448,2]
[349951166,1737533445762,-500.0,0.00019448,2]
[349951167,1737533445771,-500.0,0.00019448,2]
[349951168,1737533445781,-500.0,0.00019448,2]
[349951169,1737533445790,-500.0,0.00019448,2]
[349951170,1737533445801,-550.49,0.00019448,2]
[349951171,1737533445811,-500.0,0.00019448,2]
[349951172,1737533445821,-500.0,0.00019448,2]
[349951173,1737533445830,-573.37791864,0.00019448,2]
[349951174,1737533445840,-500.0,0.00019448,2]
[349951175,1737533445852,-500.0,0.00019448,2]
[349951176,1737533445862,-500.0,0.00019448,2]
[349951177,1737533445871,-937.85,0.00019448,2]
[349951178,1737533445881,-1628.26,0.00019448,2]
[349951179,1737533445891,-592.46,0.00019448,2]
[349951180,1737533445900,-509.35166967,0.00019448,2]
[349951181,1737533445909,-500.0,0.00019448,2]
[349951182,1737533445920,-514.09004656,0.00019448,2]
[349951183,1737533445930,-529.94,0.00019448,2]
[349951184,1737533445941,-950.95,0.00019448,2]
[349951185,1737533445950,-500.0,0.00019448,2]
[349951186,1737533445960,-500.0,0.00019448,2]
[349951187,1737533445970,-502.11232001,0.00019448,2]
[349951188,1737533445979,-500.0,0.00019448,2]
[349951189,1737533445988,-500.0,0.00019448,2]
[349951190,1737533445997,-1028.76,0.00019448,2]
[349951191,1737533446007,-500.0,0.00019448,2]
[349951192,1737533446016,-500.0,0.00019448,2]
[349951193,1737533446025,-500.0,0.00019448,2]
[349951194,1737533446034,-500.0,0.00019448,2]
[349951195,1737533446043,-500.0,0.00019448,2]
[349951196,1737533446053,-500.0,0.00019448,2]
[349951197,1737533446063,-827.8,0.00019448,2]
[349951198,1737533446073,-770.3,0.00019448,2]
[349951199,1737533446082,-500.0,0.00019448,2]
[349951200,1737533446091,-629.9,0.00019448,2]
[349951201,1737533446100,-913.52,0.00019448,2]
[349951202,1737533446109,-1077.59,0.00019448,2]
[349951203,1737533446119,-386.09551335,0.00019448,2]
[349951204,1737533446130,-889.19,0.00019448,2]
[349951205,1737533446141,-500.0,0.00019448,2]
[349951206,1737533446150,-1068.38,0.00019448,2]
[349951207,1737533446160,-500.0,0.00019448,2]
[349951208,1737533446171,-500.0,0.00019448,2]
[349951209,1737533446181,-646.32,0.00019448,2]
[349951210,1737533446193,-500.0,0.00019448,2]
[349951211,1737533446203,-500.0,0.00019448,2]
[349951212,1737533446212,-500.0,0.00019448,2]
[349951213,1737533446222,-504.52964443,0.00019448,2]
[349951214,1737533446231,-500.0,0.00019448,2]
[349951215,1737533446240,-500.0,0.00019448,2]
[349951216,1737533446250,-500.0,0.00019448,2]
[349951217,1737533446259,-500.0,0.00019448,2]
[349951218,1737533446268,-500.0,0.00019448,2]
[349951219,1737533446278,-500.0,0.00019448,2]
[349951220,1737533446287,-500.0,0.00019448,2]
[349951221,1737533446296,-956.44,0.00019448,2]
[349951222,1737533446306,-823.7,0.00019448,2]
[349951223,1737533446314,-500.0,0.00019448,2]
[349951224,1737533446323,-500.0,0.00019448,2]
[349951225,1737533446333,-962.29,0.00019448,2]
[349951226,1737533446342,-500.0,0.00019448,2]
[349951227,1737533446351,-842.56,0.00019448,2]
[349951228,1737533446360,-622.33,0.00019448,2]
[349951229,1737533446369,-500.0,0.00019448,2]
[349951231,1737533446379,-500.0,0.00019448,2]